[Event "MCR rapid mládeže 2023 U16"]
[Site "Harachov, Czech Republic"]
[Date "2023.09.09"]
[Round "6.15"]
[White "Sochor, Antonin"]
[Black "Mik, Tomas"]
[Result "0-1"]
[TimeControl "20min+5s/move"]
[WhiteElo "1480"]
[BlackElo "1802"]

1. Nf3 {[%clk 00:20:07]} {[%emt 00:00:03]} Nf6 {[%clk 00:20:09]} {[%emt
00:00:01]} 2. g3 {[%clk 00:20:06]} {[%emt 00:00:06]} g6 {[%clk 00:20:13]}
{[%emt 00:00:01]} 3. Bg2 {[%clk 00:20:10]} Bg7 {[%clk 00:20:17]} {[%emt
00:00:02]} 4. O-O {[%clk 00:20:13]} {[%emt 00:00:01]} O-O {[%clk 00:20:20]}
{[%emt 00:00:02]} 5. d3 {[%clk 00:20:15]} {[%emt 00:00:04]} c5 {[%clk
00:20:00]} {[%emt 00:00:25]} 6. e4 {[%clk 00:20:18]} {[%emt 00:00:02]} d6
{[%clk 00:20:01]} {[%emt 00:00:04]} 7. Nc3 {[%clk 00:20:18]} {[%emt 00:00:05]}
Nc6 {[%clk 00:20:04]} {[%emt 00:00:02]} 8. Be3 {[%clk 00:20:21]} {[%emt
00:00:01]} Qc7 {[%clk 00:19:55]} {[%emt 00:00:15]} 9. Qd2 {[%clk 00:20:21]}
{[%emt 00:00:04]} Rd8 {[%clk 00:19:51]} {[%emt 00:00:11]} 10. Bh6 {[%clk
00:20:23]} {[%emt 00:00:02]} Bh8 {[%clk 00:19:54]} {[%emt 00:00:01]} 11. Nd5
{[%clk 00:19:53]} {[%emt 00:00:35]} Nxd5 {[%clk 00:19:31]} {[%emt 00:00:29]} 12.
exd5 {[%clk 00:19:56]} {[%emt 00:00:02]} Ne5 {[%clk 00:19:31]} {[%emt
00:00:05]} 13. Nxe5 {[%clk 00:19:58]} {[%emt 00:00:03]} Bxe5 {[%clk 00:19:28]}
{[%emt 00:00:09]} 14. c4 {[%clk 00:19:49]} {[%emt 00:00:13]} a6 {[%clk
00:18:43]} {[%emt 00:00:50]} 15. Rab1 {[%clk 00:19:42]} {[%emt 00:00:11]} b5
{[%clk 00:18:17]} {[%emt 00:00:33]} 16. b3 {[%clk 00:19:45]} {[%emt 00:00:01]}
Bd7 {[%clk 00:17:44]} {[%emt 00:00:38]} 17. Be3 {[%clk 00:19:45]} {[%emt
00:00:05]} Bf5 {[%clk 00:17:07]} {[%emt 00:00:42]} 18. d4 {[%clk 00:19:47]}
{[%emt 00:00:03]} cxd4 {[%clk 00:16:53]} {[%emt 00:00:18]} 19. Bxd4 {[%clk
00:19:39]} {[%emt 00:00:12]} Bxd4 {[%clk 00:16:39]} {[%emt 00:00:21]} 20. Qxd4
{[%clk 00:19:40]} {[%emt 00:00:04]} Bxb1 {[%clk 00:16:42]} {[%emt 00:00:02]} 21.
Rxb1 {[%clk 00:19:41]} {[%emt 00:00:04]} bxc4 {[%clk 00:16:45]} {[%emt
00:00:02]} 22. bxc4 {[%clk 00:19:31]} {[%emt 00:00:14]} Rab8 {[%clk 00:16:48]}
{[%emt 00:00:03]} 23. Rc1 {[%clk 00:19:35]} {[%emt 00:00:01]} Qc5 {[%clk
00:16:45]} {[%emt 00:00:07]} 24. Qe4 {[%clk 00:19:27]} {[%emt 00:00:11]} Rb2
{[%clk 00:16:40]} {[%emt 00:00:11]} 25. Rf1 {[%clk 00:19:03]} {[%emt 00:00:30]}
Rd7 {[%clk 00:16:23]} {[%emt 00:00:22]} 26. Qg4 {[%clk 00:18:27]} {[%emt
00:00:37]} Rc7 {[%clk 00:16:20]} {[%emt 00:00:11]} 27. Rc1 {[%clk 00:18:04]}
{[%emt 00:00:28]} Qxf2+ {[%clk 00:16:22]} {[%emt 00:00:04]} 28. Kh1 {[%clk
00:17:46]} {[%emt 00:00:22]} Qxg2# {[%clk 00:16:25]} {[%emt 00:00:02]} 0-1

[Event "MCR rapid mládeže 2023 U16"]
[Site "Harachov, Czech Republic"]
[Date "2023.09.09"]
[Round "6.16"]
[White "Svadlenka, Michal"]
[Black "Tejnor, Martin"]
[Result "1-0"]
[TimeControl "20min+5s/move"]
[WhiteElo "1451"]
[BlackElo "1434"]

1. e4 {[%clk 00:20:08]} {[%emt 00:00:01]} c5 {[%clk 00:20:10]} {[%emt
00:00:01]} 2. Nf3 {[%clk 00:20:12]} {[%emt 00:00:01]} d6 {[%clk 00:20:14]}
{[%emt 00:00:01]} 3. d4 {[%clk 00:20:16]} {[%emt 00:00:01]} cxd4 {[%clk
00:20:17]} {[%emt 00:00:01]} 4. Nxd4 {[%clk 00:20:20]} Nf6 {[%clk 00:20:21]}
{[%emt 00:00:01]} 5. Nc3 {[%clk 00:20:24]} Nc6 {[%clk 00:20:24]} {[%emt
00:00:03]} 6. Be3 {[%clk 00:20:06]} {[%emt 00:00:23]} e6 {[%clk 00:20:25]}
{[%emt 00:00:05]} 7. f3 {[%clk 00:20:09]} {[%emt 00:00:01]} Be7 {[%clk
00:20:29]} {[%emt 00:00:01]} 8. Qd2 {[%clk 00:20:11]} {[%emt 00:00:03]} a6
{[%clk 00:20:31]} {[%emt 00:00:03]} 9. O-O-O {[%clk 00:20:13]} {[%emt
00:00:03]} Qc7 {[%clk 00:20:27]} {[%emt 00:00:10]} 10. g4 {[%clk 00:20:07]}
{[%emt 00:00:10]} O-O {[%clk 00:20:27]} {[%emt 00:00:05]} 11. h4 {[%clk
00:20:05]} {[%emt 00:00:07]} b5 {[%clk 00:20:24]} {[%emt 00:00:08]} 12. h5
{[%clk 00:20:02]} {[%emt 00:00:07]} Bb7 {[%clk 00:20:02]} {[%emt 00:00:28]} 13.
g5 {[%clk 00:20:04]} {[%emt 00:00:04]} Nd7 {[%clk 00:19:41]} {[%emt 00:00:26]}
14. g6 {[%clk 00:19:50]} {[%emt 00:00:19]} Nxd4 {[%clk 00:18:34]} {[%emt
00:01:12]} 15. gxh7+ {[%clk 00:19:08]} {[%emt 00:00:47]} Kxh7 {[%clk 00:18:30]}
{[%emt 00:00:08]} 16. Bxd4 {[%clk 00:18:10]} {[%emt 00:01:02]} Rac8 {[%clk
00:18:19]} {[%emt 00:00:16]} 17. Bd3 {[%clk 00:16:47]} {[%emt 00:01:29]} e5
{[%clk 00:17:15]} {[%emt 00:01:10]} 18. Be3 {[%clk 00:16:46]} {[%emt 00:00:05]}
Nc5 {[%clk 00:15:19]} {[%emt 00:02:01]} 19. Rdg1 {[%clk 00:15:34]} {[%emt
00:01:17]} Nxd3+ {[%clk 00:15:12]} {[%emt 00:00:11]} 20. Qxd3 {[%clk 00:15:18]}
{[%emt 00:00:22]} b4 {[%clk 00:14:39]} {[%emt 00:00:39]} 21. Nb1 {[%clk
00:15:01]} {[%emt 00:00:21]} a5 {[%clk 00:14:28]} {[%emt 00:00:16]} 22. Qd2
{[%clk 00:14:06]} {[%emt 00:01:00]} a4 {[%clk 00:13:27]} {[%emt 00:01:07]} 23.
Rh2 {[%clk 00:12:25]} {[%emt 00:01:45]} b3 {[%clk 00:12:47]} {[%emt 00:00:45]}
24. axb3 {[%clk 00:12:22]} {[%emt 00:00:08]} axb3 {[%clk 00:12:51]} {[%emt
00:00:02]} 25. c3 {[%clk 00:12:13]} {[%emt 00:00:14]} Rg8 {[%clk 00:12:39]}
{[%emt 00:00:16]} 26. Rhg2 {[%clk 00:10:23]} {[%emt 00:01:55]} Bf8 {[%clk
00:12:18]} {[%emt 00:00:26]} 27. Bg5 {[%clk 00:05:23]} {[%emt 00:05:05]} Be7
{[%clk 00:11:46]} {[%emt 00:00:37]} 28. Rd1 {[%clk 00:04:18]} {[%emt 00:01:11]}
Rcd8 {[%clk 00:10:23]} {[%emt 00:01:28]} 29. Na3 {[%clk 00:04:10]} {[%emt
00:00:13]} Ba6 {[%clk 00:10:19]} {[%emt 00:00:09]} 30. f4 {[%clk 00:03:52]}
{[%emt 00:00:22]} Kh8 {[%clk 00:08:57]} {[%emt 00:01:27]} 31. f5 {[%clk
00:03:39]} {[%emt 00:00:19]} Kh7 {[%clk 00:04:11]} {[%emt 00:04:50]} 32. h6
{[%clk 00:02:06]} {[%emt 00:01:39]} g6 {[%clk 00:04:05]} {[%emt 00:00:11]} 33.
fxg6+ {[%clk 00:01:35]} {[%emt 00:00:36]} fxg6 {[%clk 00:04:07]} {[%emt
00:00:03]} 34. Rf2 {[%clk 00:00:39]} {[%emt 00:01:01]} Bxg5 {[%clk 00:03:26]}
{[%emt 00:00:46]} 35. Qxg5 {[%clk 00:00:40]} {[%emt 00:00:04]} Rgf8 {[%clk
00:03:16]} {[%emt 00:00:14]} 36. Rf6 {[%clk 00:00:28]} {[%emt 00:00:17]} Rxf6
{[%clk 00:02:35]} {[%emt 00:00:46]} 37. Qxf6 {[%clk 00:00:32]} {[%emt
00:00:01]} Rd7 {[%clk 00:02:01]} {[%emt 00:00:39]} 38. Rg1 {[%clk 00:00:30]}
{[%emt 00:00:07]} Qd8 {[%clk 00:01:41]} {[%emt 00:00:24]} 39. Qxg6+ {[%clk
00:00:32]} {[%emt 00:00:04]} Kh8 {[%clk 00:01:45]} 40. h7 {[%clk 00:00:29]}
{[%emt 00:00:08]} Rxh7 {[%clk 00:01:11]} {[%emt 00:00:40]} 41. Qe6 {[%clk
00:00:24]} {[%emt 00:00:10]} Qf8 {[%clk 00:00:57]} {[%emt 00:00:19]} 42. Qxb3
{[%clk 00:00:17]} {[%emt 00:00:13]} Qf4+ {[%clk 00:00:35]} {[%emt 00:00:26]} 43.
Kb1 {[%clk 00:00:21]} {[%emt 00:00:01]} Qxe4+ {[%clk 00:00:39]} {[%emt
00:00:02]} 44. Ka2 {[%clk 00:00:24]} {[%emt 00:00:01]} d5 {[%clk 00:00:42]}
{[%emt 00:00:02]} 45. Qb8+ {[%clk 00:00:23]} {[%emt 00:00:06]} 1-0

[Event "MCR rapid mládeže 2023 U16"]
[Site "Harachov, Czech Republic"]
[Date "2023.09.09"]
[Round "6.17"]
[White "Bara, Jan"]
[Black "Honcharov, Makar"]
[Result "0-1"]
[TimeControl "20min+5s/move"]
[WhiteElo "1823"]
[BlackElo "1593"]

1. d4 {[%clk 00:19:55]} {[%emt 00:00:15]} Nf6 {[%clk 00:19:52]} {[%emt
00:00:18]} 2. c4 {[%clk 00:19:52]} {[%emt 00:00:08]} g6 {[%clk 00:19:30]}
{[%emt 00:00:26]} 3. Nc3 {[%clk 00:19:54]} {[%emt 00:00:04]} Bg7 {[%clk
00:19:34]} {[%emt 00:00:01]} 4. e4 {[%clk 00:19:58]} {[%emt 00:00:01]} d6
{[%clk 00:19:37]} {[%emt 00:00:02]} 5. f4 {[%clk 00:20:02]} O-O {[%clk
00:19:39]} {[%emt 00:00:04]} 6. Nf3 {[%clk 00:20:06]} {[%emt 00:00:01]} c5
{[%clk 00:19:43]} {[%emt 00:00:01]} 7. d5 {[%clk 00:20:09]} {[%emt 00:00:02]}
e6 {[%clk 00:19:46]} {[%emt 00:00:01]} 8. Be2 {[%clk 00:19:40]} {[%emt
00:00:35]} exd5 {[%clk 00:19:49]} {[%emt 00:00:02]} 9. cxd5 {[%clk 00:19:44]}
{[%emt 00:00:01]} Re8 {[%clk 00:19:53]} {[%emt 00:00:02]} 10. e5 {[%clk
00:17:32]} {[%emt 00:02:16]} dxe5 {[%clk 00:19:56]} {[%emt 00:00:02]} 11. fxe5
{[%clk 00:17:36]} Ng4 {[%clk 00:20:00]} {[%emt 00:00:01]} 12. e6 {[%clk
00:17:40]} {[%emt 00:00:01]} fxe6 {[%clk 00:19:37]} {[%emt 00:00:28]} 13. d6
{[%clk 00:17:44]} Qb6 {[%clk 00:15:23]} {[%emt 00:04:20]} 14. Na4 {[%clk
00:11:57]} {[%emt 00:05:53]} Qc6 {[%clk 00:13:04]} {[%emt 00:02:23]} 15. h3
{[%clk 00:09:53]} {[%emt 00:02:09]} Ne5 {[%clk 00:12:59]} {[%emt 00:00:10]} 16.
Bf4 {[%clk 00:07:57]} {[%emt 00:02:00]} Nxf3+ {[%clk 00:10:10]} {[%emt
00:02:54]} 17. Bxf3 {[%clk 00:07:49]} {[%emt 00:00:13]} Qb5 {[%clk 00:10:01]}
{[%emt 00:00:15]} 18. Be2 {[%clk 00:06:24]} {[%emt 00:01:30]} Qb4+ {[%clk
00:09:53]} {[%emt 00:00:12]} 19. Bd2 {[%clk 00:06:01]} {[%emt 00:00:28]} Qh4+
{[%clk 00:09:56]} {[%emt 00:00:03]} 20. Kf1 {[%clk 00:05:36]} {[%emt 00:00:30]}
Rf8+ {[%clk 00:08:48]} {[%emt 00:01:13]} 21. Bf3 {[%clk 00:05:38]} {[%emt
00:00:03]} Qc4+ {[%clk 00:08:47]} {[%emt 00:00:05]} 22. Kg1 {[%clk 00:05:25]}
{[%emt 00:00:17]} Bd4+ {[%clk 00:08:33]} {[%emt 00:00:19]} 23. Kh2 {[%clk
00:05:15]} {[%emt 00:00:15]} Be5+ {[%clk 00:08:14]} {[%emt 00:00:25]} 24. g3
{[%clk 00:03:46]} {[%emt 00:01:34]} Qd3 {[%clk 00:05:57]} {[%emt 00:02:21]} 25.
Kg2 {[%clk 00:02:23]} {[%emt 00:01:28]} Rxf3 {[%clk 00:04:55]} {[%emt
00:01:08]} 26. Qxf3 {[%clk 00:02:05]} {[%emt 00:00:23]} Qxd2+ {[%clk 00:04:56]}
{[%emt 00:00:04]} 27. Qf2 {[%clk 00:01:56]} {[%emt 00:00:12]} Qd5+ {[%clk
00:04:16]} {[%emt 00:00:47]} 28. Kh2 {[%clk 00:00:55]} {[%emt 00:01:05]} Bd4
{[%emt 00:02:07]} 0-1

[Event "MCR rapid mládeže 2023 U16"]
[Site "Harachov, Czech Republic"]
[Date "2023.09.09"]
[Round "6.18"]
[White "Kozdon, Marek"]
[Black "Boff, Ondrej"]
[Result "0-1"]
[TimeControl "20min+5s/move"]
[WhiteElo "1548"]
[BlackElo "1486"]

1. d4 {[%clk 00:19:39]} {[%emt 00:00:31]} Nf6 {[%clk 00:20:09]} {[%emt
00:00:01]} 2. Nf3 {[%clk 00:19:38]} {[%emt 00:00:06]} c5 {[%clk 00:20:13]}
{[%emt 00:00:01]} 3. d5 {[%clk 00:19:40]} {[%emt 00:00:03]} d6 {[%clk
00:20:07]} {[%emt 00:00:12]} 4. a4 {[%clk 00:19:23]} {[%emt 00:00:22]} g6
{[%clk 00:19:45]} {[%emt 00:00:26]} 5. c4 {[%clk 00:19:21]} {[%emt 00:00:06]}
Bg7 {[%clk 00:19:49]} {[%emt 00:00:02]} 6. Nc3 {[%clk 00:19:25]} {[%emt
00:00:02]} O-O {[%clk 00:19:46]} {[%emt 00:00:07]} 7. e4 {[%clk 00:19:24]}
{[%emt 00:00:06]} Nbd7 {[%clk 00:19:44]} {[%emt 00:00:07]} 8. Bd3 {[%clk
00:19:24]} {[%emt 00:00:05]} b6 {[%clk 00:19:39]} {[%emt 00:00:10]} 9. O-O
{[%clk 00:19:25]} {[%emt 00:00:04]} Ba6 {[%clk 00:19:38]} {[%emt 00:00:06]} 10.
b3 {[%clk 00:19:03]} {[%emt 00:00:27]} Nxe4 {[%clk 00:18:56]} {[%emt 00:00:47]}
11. Bxe4 {[%clk 00:18:43]} {[%emt 00:00:25]} Bxc3 {[%clk 00:18:57]} {[%emt
00:00:03]} 12. Rb1 {[%clk 00:18:47]} {[%emt 00:00:01]} Bg7 {[%clk 00:18:43]}
{[%emt 00:00:19]} 13. Bf4 {[%clk 00:18:27]} {[%emt 00:00:25]} Nf6 {[%clk
00:18:36]} {[%emt 00:00:12]} 14. Qc2 {[%clk 00:18:08]} {[%emt 00:00:25]} Nxe4
{[%clk 00:18:28]} {[%emt 00:00:13]} 15. Qxe4 {[%clk 00:18:11]} {[%emt
00:00:02]} Bc8 {[%clk 00:18:30]} {[%emt 00:00:02]} 16. Rfe1 {[%clk 00:18:11]}
{[%emt 00:00:06]} Bf5 {[%clk 00:18:29]} {[%emt 00:00:05]} 17. Qxe7 {[%clk
00:18:13]} {[%emt 00:00:04]} Qxe7 {[%clk 00:18:31]} {[%emt 00:00:03]} 18. Rxe7
{[%clk 00:18:14]} {[%emt 00:00:04]} Bxb1 {[%clk 00:18:32]} {[%emt 00:00:03]} 19.
Bxd6 {[%clk 00:18:16]} {[%emt 00:00:03]} Rfe8 {[%clk 00:18:19]} {[%emt
00:00:18]} 20. h3 {[%clk 00:18:11]} {[%emt 00:00:10]} Rxe7 {[%clk 00:18:13]}
{[%emt 00:00:11]} 21. Bxe7 {[%clk 00:18:15]} {[%emt 00:00:02]} Re8 {[%clk
00:18:16]} {[%emt 00:00:02]} 22. d6 {[%clk 00:18:19]} {[%emt 00:00:01]} Bf5
{[%clk 00:18:16]} {[%emt 00:00:05]} 23. g4 {[%clk 00:18:10]} {[%emt 00:00:13]}
Bc8 {[%clk 00:17:42]} {[%emt 00:00:39]} 24. Kg2 {[%clk 00:17:46]} {[%emt
00:00:30]} Bf8 {[%clk 00:17:44]} {[%emt 00:00:03]} 25. Bxf8 {[%emt 00:00:17]}
Rxf8 {[%clk 00:17:39]} {[%emt 00:00:05]} 26. Ne5 {[%clk 00:17:37]} {[%emt
00:00:08]} Rd8 {[%clk 00:17:42]} {[%emt 00:00:01]} 27. Nc6 {[%clk 00:17:38]}
{[%emt 00:00:04]} Rxd6 {[%clk 00:17:44]} {[%emt 00:00:02]} 28. Ne7+ {[%clk
00:17:43]} {[%emt 00:00:02]} Kg7 {[%clk 00:17:41]} {[%emt 00:00:06]} 29. Nxc8
{[%clk 00:17:46]} {[%emt 00:00:03]} Rd3 {[%clk 00:17:43]} 30. Nxa7 {[%clk
00:17:40]} {[%emt 00:00:14]} Rxb3 {[%clk 00:17:45]} {[%emt 00:00:02]} 31. Nc8
{[%clk 00:17:41]} {[%emt 00:00:04]} Kf6 {[%clk 00:17:31]} {[%emt 00:00:18]} 32.
f3 {[%clk 00:17:17]} {[%emt 00:00:30]} g5 {[%clk 00:17:26]} {[%emt 00:00:09]}
33. Kf2 {[%clk 00:17:20]} {[%emt 00:00:03]} Ke6 {[%clk 00:17:28]} {[%emt
00:00:02]} 34. Ke2 {[%clk 00:16:39]} {[%emt 00:00:46]} Kd7 {[%clk 00:17:24]}
{[%emt 00:00:08]} 35. Na7 {[%clk 00:16:24]} {[%emt 00:00:21]} Ra3 {[%clk
00:17:07]} {[%emt 00:00:21]} 36. Kd2 {[%clk 00:16:09]} {[%emt 00:00:21]} Rxf3
{[%clk 00:17:07]} {[%emt 00:00:05]} 37. Nb5 {[%clk 00:16:07]} {[%emt 00:00:07]}
Rxh3 {[%clk 00:17:09]} {[%emt 00:00:03]} 38. Nc3 {[%clk 00:16:06]} {[%emt
00:00:06]} Rg3 {[%clk 00:16:45]} {[%emt 00:00:27]} 39. Ne4 {[%clk 00:16:02]}
{[%emt 00:00:11]} Rg2+ {[%clk 00:16:49]} {[%emt 00:00:02]} 40. Kd3 {[%clk
00:16:05]} {[%emt 00:00:01]} h6 {[%clk 00:16:50]} {[%emt 00:00:04]} 41. Kc3
{[%clk 00:16:06]} {[%emt 00:00:06]} Ke6 {[%clk 00:16:51]} {[%emt 00:00:03]} 42.
Kd3 {[%clk 00:16:03]} {[%emt 00:00:07]} Rxg4 {[%clk 00:16:43]} {[%emt
00:00:13]} 43. a5 {[%clk 00:16:07]} {[%emt 00:00:01]} Rxe4 {[%clk 00:16:33]}
{[%emt 00:00:16]} 44. a6 {[%clk 00:16:08]} {[%emt 00:00:04]} Re1 {[%clk
00:16:36]} {[%emt 00:00:01]} 45. a7 {[%clk 00:16:10]} {[%emt 00:00:04]} Ra1
{[%clk 00:16:38]} {[%emt 00:00:03]} 46. a8=N {[%clk 00:16:09]} {[%emt
00:00:06]} g4 {[%clk 00:16:29]} {[%emt 00:00:14]} 47. Nc7+ {[%clk 00:16:11]}
{[%emt 00:00:03]} Kd7 {[%clk 00:16:26]} {[%emt 00:00:07]} 48. Nd5 {[%clk
00:16:02]} {[%emt 00:00:15]} g3 {[%clk 00:16:27]} {[%emt 00:00:03]} 49. Nf4
{[%clk 00:16:02]} {[%emt 00:00:06]} f5 {[%clk 00:16:22]} {[%emt 00:00:09]} 50.
Ke3 {[%clk 00:16:04]} {[%emt 00:00:04]} Kd6 {[%clk 00:16:23]} {[%emt 00:00:04]}
51. Kf3 {[%clk 00:15:56]} {[%emt 00:00:13]} Ra3+ {[%clk 00:16:25]} {[%emt
00:00:02]} 52. Kg2 {[%clk 00:15:56]} {[%emt 00:00:06]} Ke5 {[%clk 00:16:25]}
{[%emt 00:00:04]} 53. Ng6+ {[%clk 00:15:59]} {[%emt 00:00:03]} Kf6 {[%clk
00:16:11]} {[%emt 00:00:18]} 54. Nf4 {[%clk 00:15:59]} {[%emt 00:00:06]} Kg5
{[%clk 00:15:58]} {[%emt 00:00:17]} 55. Ne6+ {[%clk 00:15:56]} {[%emt
00:00:09]} Kg4 {[%clk 00:15:52]} {[%emt 00:00:10]} 56. Ng7 {[%clk 00:15:37]}
{[%emt 00:00:25]} h5 {[%clk 00:15:50]} {[%emt 00:00:05]} 57. Ne6 {[%clk
00:15:31]} {[%emt 00:00:12]} h4 {[%clk 00:15:51]} {[%emt 00:00:04]} 58. Ng7
{[%clk 00:15:33]} {[%emt 00:00:03]} f4 {[%clk 00:15:42]} {[%emt 00:00:14]} 59.
Nf5 {[%clk 00:15:24]} {[%emt 00:00:14]} h3+ {[%clk 00:15:29]} {[%emt 00:00:18]}
60. Kf1 {[%clk 00:15:27]} {[%emt 00:00:02]} Kxf5 {[%clk 00:15:23]} {[%emt
00:00:11]} 61. Ke2 {[%clk 00:15:30]} {[%emt 00:00:03]} f3+ {[%clk 00:15:25]}
{[%emt 00:00:03]} 62. Kd2 {[%clk 00:15:32]} {[%emt 00:00:02]} h2 {[%clk
00:15:22]} {[%emt 00:00:08]} 63. Kc2 {[%clk 00:15:35]} {[%emt 00:00:36]} g2
{[%clk 00:15:08]} 64. Kd2 {[%clk 00:15:29]} {[%emt 00:00:16]} f2 {[%clk
00:15:04]} 65. Kc2 {[%clk 00:15:29]} Re3 66. Kd2 {[%emt 00:00:07]} Kf4 {[%clk
00:15:04]} 67. Kc2 {[%clk 00:15:33]} {[%emt 00:00:04]} h1=N {[%clk 00:14:51]}
{[%emt 00:00:18]} 68. Kd2 {[%clk 00:15:35]} {[%emt 00:00:03]} f1=N+ {[%clk
00:14:45]} {[%emt 00:00:11]} 69. Kc2 {[%clk 00:15:37]} {[%emt 00:00:02]} g1=N
{[%clk 00:14:43]} {[%emt 00:00:07]} 70. Kb2 {[%clk 00:15:28]} {[%emt 00:00:15]}
Nhg3 {[%clk 00:14:42]} {[%emt 00:00:05]} 71. Ka1 {[%clk 00:15:31]} {[%emt
00:00:03]} Re2 {[%clk 00:14:37]} {[%emt 00:00:10]} 72. Kb1 {[%clk 00:15:33]}
{[%emt 00:00:03]} Nf3 {[%clk 00:14:39]} {[%emt 00:00:03]} 73. Ka1 {[%clk
00:15:40]} {[%emt 00:00:32]} Ne3 {[%clk 00:14:07]} 74. Kb1 {[%clk 00:15:43]}
{[%emt 00:00:25]} Ng2 {[%clk 00:14:01]} 75. Ka1 {[%clk 00:15:44]} {[%emt
00:00:15]} Ne4 {[%clk 00:13:57]} 76. Kb1 {[%clk 00:15:47]} {[%emt 00:00:11]}
Nge1 {[%clk 00:13:53]} 77. Ka1 {[%clk 00:15:47]} Nd3 78. Kb1 {[%emt 00:00:07]}
Nd4 {[%clk 00:13:53]} 79. Ka1 {[%clk 00:15:51]} {[%emt 00:00:02]} Ke5 {[%clk
00:13:54]} {[%emt 00:00:03]} 80. Kb1 {[%clk 00:15:43]} {[%emt 00:00:14]} Nc3+
{[%clk 00:13:47]} {[%emt 00:00:08]} 81. Ka1 {[%clk 00:15:35]} {[%emt 00:00:17]}
Nc2# {[%emt 00:00:35]} 0-1